bitfinex/quotes_ETHUSD_20240902
["timestamp","ask_amount","ask_price","bid_price","bid_amount"]
[1725294813891,3.97015,2518.8,2518.3,5.7527914]
[1725294815536,3.96985,2519.0,2518.1,11.25112]
[1725294815537,3.97069,2518.5,2518.1,7.28]
[1725294815743,3.97056,2518.6,2518.1,7.28]
[1725294815908,3.97084,2518.4,2518.1,7.28]
[1725294816733,7.94169,2518.4,2518.1,7.28]
[1725294816943,7.9417,2518.4,2518.1,7.28]
[1725294817314,3.97084,2518.4,2518.1,7.28]
[1725294817508,3.97102,2518.3,2518.1,7.28]
[1725294818237,6.28542,2518.3,2518.1,7.28]
[1725294818736,3.97109,2518.2,2518.1,7.28]
[1725294818940,3.97109,2518.2,2517.9,19.98000395]
[1725294819104,3.97109,2518.2,2517.9,23.50036235]
[1725294819806,3.97109,2518.2,2518.0,0.04204743]
[1725294821301,3.97124,2518.1,2518.0,0.04204743]
[1725294823539,3.97109,2518.2,2518.0,0.04204743]
[1725294823911,3.97124,2518.1,2518.0,0.04204743]
[1725294824716,3.97109,2518.2,2518.0,0.04204743]
[1725294825115,7.94248,2518.1,2518.0,0.04204743]
[1725294825314,10.94248,2518.1,2518.0,0.04204743]
[1725294828649,13.33348,2518.1,2518.0,0.04204743]
[1725294828815,17.30472,2518.1,2518.0,0.04204743]
[1725294829011,25.53372534,2518.1,2518.0,0.04204743]
[1725294829348,28.14995277,2518.1,2518.0,0.04204743]
[1725294830021,24.17871277,2518.1,2518.0,0.04204743]
[1725294835561,28.14995277,2518.1,2518.0,0.04204743]
[1725294836067,14.209,2518.0,2517.9,3.95e-06]
[1725294836403,20.07727818,2518.0,2517.9,3.95e-06]
[1725294839561,24.04867818,2518.0,2517.9,3.95e-06]
[1725294841092,3.9714,2518.0,2517.9,3.95e-06]
[1725294841289,3.97125,2518.1,2517.9,3.95e-06]
[1725294841580,3.9714,2518.0,2517.9,0.04409722]
[1725294841796,3.9714,2518.0,2517.9,3.95e-06]
[1725294842086,4.25776534,2518.5,2517.9,3.95e-06]
[1725294842087,2.4063,2518.6,2518.0,2.4065]
[1725294842297,3.97109,2518.2,2518.0,2.4065]
[1725294842439,3.97109,2518.2,2518.1,0.04400408]
[1725294843055,3.97109,2518.2,2517.9,3.95e-06]
[1725294843291,3.9714,2518.0,2517.9,3.95e-06]
[1725294845155,7.94265,2518.1,2517.9,3.95e-06]
[1725294845360,3.97127,2518.1,2517.9,3.95e-06]
[1725294845557,3.97132,2518.1,2517.9,3.95e-06]
[1725294845773,7.94267,2518.1,2517.9,3.95e-06]
[1725294846076,7.94203,2518.3,2517.9,3.95e-06]
[1725294846280,7.94205,2518.3,2517.9,0.63912421]
[1725294846454,3.97101,2518.3,2517.9,0.63912421]
[1725294846638,7.94206,2518.3,2517.9,0.63912421]
[1725294846843,3.9714,2518.0,2517.9,3.95e-06]
[1725294847369,10.3748,2518.0,2517.9,3.95e-06]
[1725294847579,13.3748,2518.0,2517.9,3.95e-06]
[1725294848701,13.3748,2518.0,2517.9,0.04369391]
[1725294848991,15.53518353,2518.0,2517.9,3.95e-06]
[1725294849192,6.9714,2518.0,2517.9,0.04369391]
[1725294849401,6.9714,2518.0,2517.9,3.95e-06]
[1725294849565,6.9714,2518.0,2517.9,0.04391388]
[1725294849753,10.9428,2518.0,2517.9,3.95e-06]
[1725294850074,12.037076,2518.0,2517.9,3.95e-06]
[1725294850662,14.391976,2518.0,2517.9,3.95e-06]
[1725294850883,14.391976,2518.0,2517.9,0.04391388]
[1725294852453,6.9714,2518.0,2517.9,0.04391388]
[1725294852656,3.9714,2518.0,2517.9,0.04391388]
[1725294853990,3.0,2518.3,2517.9,0.04391388]
[1725294854223,6.9712,2518.2,2517.9,0.04391388]
[1725294854396,3.97133,2518.1,2517.9,0.04391388]
[1725294855556,3.9714,2518.0,2517.9,0.04391388]
[1725294855752,7.9428,2518.0,2517.9,0.04391388]
[1725294857092,9.2747,2518.0,2517.9,0.04391388]
[1725294857755,7.9428,2518.0,2517.9,0.04391388]
[1725294859402,10.417,2518.0,2517.9,0.04391388]
[1725294859709,13.417,2518.0,2517.9,0.04391388]
[1725294861328,6.9714,2518.0,2517.9,0.04391388]
[1725294865714,3.97118,2518.2,2517.9,0.04391388]
[1725294866300,3.97139,2518.1,2517.9,0.04391388]
[1725294867426,3.9711,2518.2,2517.9,0.04391388]
[1725294868334,7.9423,2518.2,2517.9,0.04391388]
[1725294868529,3.9711,2518.2,2517.9,0.04391388]
[1725294869026,4.25776534,2518.4,2517.9,0.04391388]
[1725294869194,3.9714,2518.0,2517.9,0.04391388]
[1725294870233,3.97106,2518.3,2517.9,0.04391388]
[1725294870434,3.97106,2518.3,2518.0,2.344]
[1725294870728,3.97106,2518.3,2518.1,0.04352006]
[1725294871437,7.94208,2518.3,2518.1,0.04352006]
[1725294872231,3.97102,2518.3,2518.1,0.04352006]
[1725294873907,6.97074,2518.5,2518.1,0.04352006]
[1725294874133,3.97088,2518.4,2518.1,0.04352006]
[1725294875542,3.97095,2518.3,2518.1,0.04352006]
[1725294877244,3.97109,2518.2,2518.1,0.04352006]
[1725294877616,3.9714,2518.0,2517.9,3.95e-06]
[1725294879599,3.9714,2518.0,2517.9,0.04312931]
[1725294879848,3.9714,2518.0,2517.9,3.95e-06]
[1725294880019,3.9714,2518.0,2517.9,0.04312931]
[1725294880746,7.9428,2518.0,2517.9,0.04312931]
[1725294884511,11.06218,2518.0,2517.9,0.04312931]
[1725294888648,10.2679,2518.0,2517.9,0.04312931]
[1725294890570,3.9714,2518.0,2517.9,0.04312931]
[1725294890769,3.97109,2518.2,2517.9,2.42012931]
[1725294892327,3.97125,2518.1,2517.9,2.42012931]
[1725294892787,3.97125,2518.1,2517.9,0.04312931]
[1725294893201,3.9714,2518.0,2517.9,0.04312931]
[1725294893355,7.9428,2518.0,2517.9,0.04312931]
[1725294899704,3.9714,2518.0,2517.9,0.04312931]
[1725294899869,7.9428,2518.0,2517.9,0.04312931]
[1725294900057,10.3892,2518.0,2517.9,0.04312931]
[1725294900257,3.9714,2518.0,2517.9,0.04312931]
[1725294900469,3.9713,2518.1,2517.9,0.04312931]
[1725294900889,3.97102,2518.3,2517.9,0.29454224]
[1725294902056,3.9711,2518.2,2517.9,0.29454224]
[1725294902598,10.94144,2518.5,2518.0,2.471]
[1725294902893,3.97069,2518.5,2518.1,0.68164393]
[1725294903113,7.94139,2518.5,2518.1,0.68164393]
[1725294903404,3.97069,2518.5,2518.2,0.04018814]
[1725294904255,3.97069,2518.5,2518.2,0.35947135]
[1725294906108,7.94144,2518.5,2518.2,0.35947135]
[1725294906307,3.97069,2518.5,2518.2,0.35947135]
[1725294906963,3.97078,2518.4,2518.2,0.35947135]
[1725294908007,3.97069,2518.5,2518.2,0.35947135]
[1725294908362,3.97046,2518.6,2518.2,0.35947135]
[1725294908613,3.96977,2519.1,2518.4,6.30636]
[1725294908798,2.3723,2519.3,2518.4,6.30636]
[1725294908799,3.96962,2519.2,2518.6,3.97031]
[1725294908960,3.96943,2519.3,2518.7,2.41509586]
[1725294909162,3.96943,2519.3,2518.8,0.24150959]
[1725294909163,3.96964,2519.2,2518.8,0.24150959]
[1725294909407,3.96943,2519.3,2518.8,0.24150959]
[1725294909618,3.96969,2519.1,2518.9,0.03928238]
[1725294909910,3.96951,2519.2,2518.9,0.03928238]
[1725294910492,7.93887,2519.3,2518.9,0.03928238]
[1725294910693,3.96952,2519.2,2518.9,0.03928238]
[1725294910896,3.96967,2519.1,2518.9,0.03928238]
[1725294911358,3.96944,2519.3,2518.9,0.03928238]
[1725294911566,3.97061,2518.5,2518.3,7.28]
[1725294911760,3.97061,2518.5,2518.4,0.03910956]
[1725294912060,3.97091,2518.4,2518.2,2.4749]
[1725294912266,3.97061,2518.5,2517.9,9.75490395]
[1725294912267,3.97093,2518.3,2517.9,9.75490395]
[1725294912466,3.97093,2518.3,2518.0,0.7280004]
[1725294914568,3.97077,2518.4,2518.0,0.7280004]
[1725294914768,3.97077,2518.4,2518.1,1.04829043]
[1725294916592,3.97061,2518.5,2518.1,1.04829043]
[1725294916797,3.97078,2518.4,2518.1,1.04829043]
[1725294917421,3.97061,2518.5,2518.1,1.04829043]
[1725294917921,3.97084,2518.4,2518.1,1.04829043]
[1725294918884,3.97062,2518.5,2518.1,1.04829043]
[1725294919281,3.97047,2518.6,2518.2,2.4717]
[1725294919510,3.97047,2518.6,2518.3,0.35994029]
[1725294920486,3.97042,2518.7,2518.3,0.35994029]
[1725294920698,7.94081,2518.7,2518.3,0.35994029]
[1725294921097,3.97047,2518.6,2518.3,0.35994029]
[1725294921885,3.97007,2518.9,2518.3,4.33079029]
[1725294922084,3.97007,2518.9,2518.4,0.68819027]
[1725294922290,3.97015,2518.8,2518.4,0.68819027]
[1725294922595,3.97039,2518.7,2518.3,0.35994029]
[1725294922942,3.97039,2518.7,2518.2,2.4717]
[1725294922943,3.9707,2518.5,2518.2,2.4717]
[1725294923087,3.9707,2518.5,2518.2,3.61795904]
[1725294924412,3.97046,2518.6,2518.2,3.61795904]
[1725294924719,3.96986,2519.0,2518.2,3.61795904]
[1725294924720,3.97015,2518.8,2518.3,0.03925668]
[1725294924893,3.97015,2518.8,2518.4,2.3533]
[1725294925094,2.4876,2519.3,2518.5,4.0499232]
[1725294925323,3.96938,2519.3,2518.6,6.96407232]
[1725294925534,3.96967,2519.1,2518.6,6.96407232]
[1725294925736,3.96967,2519.1,2518.7,0.03912968]
[1725294926021,3.96998,2519.0,2518.7,0.03912968]
[1725294926660,5.33426684,2519.3,2518.7,0.03912968]
[1725294926825,3.96969,2519.1,2518.7,0.03912968]
[1725294927020,3.96951,2519.2,2518.7,0.03912968]
[1725294927021,3.96984,2519.0,2518.7,0.03912968]
[1725294927237,3.96984,2519.0,2518.7,2.67342565]
[1725294927666,3.96984,2519.0,2518.7,0.03912968]
[1725294927972,3.97014,2518.8,2518.7,0.03912968]
[1725294928629,3.96999,2518.9,2518.7,0.03912968]
[1725294929162,3.97014,2518.8,2518.7,0.03912968]
[1725294930781,3.97014,2518.8,2518.4,27.26]
[1725294930937,3.97014,2518.8,2518.5,3.45537689]
[1725294931148,3.97032,2518.7,2518.5,3.49414878]
[1725294931347,3.97045,2518.6,2518.5,0.03877189]
[1725294931734,3.97045,2518.6,2518.3,3.32284895]
[1725294931961,3.97045,2518.6,2518.5,0.03877189]
[1725294932175,3.97045,2518.6,2518.4,1.67140432]
[1725294932471,3.97045,2518.6,2518.5,0.11507914]
[1725294935054,3.97045,2518.6,2518.3,3.32284895]
[1725294935268,3.97045,2518.6,2518.5,0.11507914]
[1725294935475,3.97045,2518.6,2518.4,0.11511942]
[1725294935683,3.97045,2518.6,2518.5,0.11507914]
[1725294937100,3.96985,2519.0,2518.5,4.08567914]
[1725294937370,3.96968,2519.1,2518.6,6.42903607]
[1725294937553,3.96968,2519.1,2518.7,0.11495463]
[1725294937767,3.96947,2519.3,2518.8,3.97011]
[1725294937979,7.93894,2519.3,2518.9,0.60266147]
[1725294938169,7.93894,2519.3,2518.9,2.85726147]
[1725294938376,3.96947,2519.3,2518.9,2.85726147]
[1725294938603,7.93894,2519.3,2518.9,2.85726147]
[1725294939472,3.96953,2519.2,2518.9,2.77787066]
[1725294939669,3.96982,2519.0,2518.9,0.1147642]
[1725294939991,3.96982,2519.0,2518.6,2.3202]
[1725294940167,3.96982,2519.0,2518.7,0.34660837]
[1725294942687,3.96975,2519.1,2518.7,0.34660837]
[1725294942890,3.96952,2519.2,2518.8,2.35519399]
[1725294943203,3.96952,2519.2,2518.9,0.11458108]
[1725294943401,3.96788,2520.3,2519.5,2.2668]
[1725294943620,2.429,2520.4,2519.8,3.96856]
[1725294943823,6.39666,2520.4,2519.9,0.07936211]
[1725294943976,3.96731,2520.6,2519.9,0.07936211]
[1725294943977,3.96755,2520.5,2519.9,6.65061635]
[1725294944676,6.33301,2520.6,2520.1,3.96808]
[1725294944901,3.96731,2520.6,2520.1,3.96808]
[1725294945123,3.96715,2520.7,2520.2,4.08143876]
[1725294945330,3.96715,2520.7,2520.3,2.489]
[1725294945699,3.96626,2521.3,2520.5,2.489]
[1725294946047,2.3657,2521.7,2520.9,3.96683]
[1725294946048,3.96605,2521.4,2520.9,3.96683]
[1725294946192,3.96596,2521.5,2520.9,3.96683]
[1725294946387,7.93195,2521.5,2521.0,0.10904038]
[1725294947341,3.96622,2521.3,2521.0,0.10904038]
[1725294947560,4.759438,2521.3,2520.8,0.0793293]
[1725294947997,4.759438,2521.3,2520.9,0.10805561]
[1725294948307,7.93251,2521.3,2520.9,0.10805561]
[1725294948498,3.9664,2521.2,2520.9,0.10805561]
[1725294948820,3.9664,2521.2,2520.7,3.96699]
[1725294948821,3.9649,2522.2,2521.6,3.96569]
[1725294949033,3.9649,2522.2,2521.7,0.07929974]
[1725294949325,7.92979,2522.2,2521.7,0.18653642]
[1725294949634,3.96496,2522.1,2521.7,0.18653642]
[1725294949820,3.96467,2522.3,2521.9,4.26233531]
[1725294949996,3.96488,2522.2,2521.9,4.26233531]
[1725294950346,3.96488,2522.2,2522.0,0.10675789]
[1725294950835,3.96464,2522.3,2522.0,0.10675789]
[1725294951132,3.96494,2522.1,2522.0,0.10675789]
[1725294951444,3.96494,2522.1,2521.5,6.74873531]
[1725294951743,3.96494,2522.1,2522.0,0.10675789]
[1725294951897,3.96494,2522.1,2521.5,10.71457531]
[1725294952239,3.96428,2522.6,2522.0,10.71382531]
[1725294952419,3.96428,2522.6,2522.1,0.07928406]
[1725294952605,3.96428,2522.6,2522.1,0.18557058]
[1725294952805,3.96428,2522.6,2522.1,1.27551017]
[1725294953012,3.964,2522.7,2522.2,6.74873531]
[1725294953240,3.964,2522.7,2522.3,0.18549028]
[1725294953997,3.96309,2523.3,2522.7,3.96391]
[1725294954247,3.96296,2523.4,2522.9,2.3685]
[1725294954409,3.96279,2523.5,2523.0,0.07926239]
[1725294954736,3.96279,2523.5,2523.1,0.10385301]
[1725294954939,3.96294,2523.4,2523.1,0.10385301]
[1725294955248,4.359069,2523.5,2523.1,0.10385301]
[1725294955614,4.359069,2523.5,2523.0,0.07925611]
[1725294955800,3.96279,2523.5,2523.1,0.10385301]
[1725294956207,7.92507,2523.7,2523.1,0.10385301]
[1725294956407,3.96261,2523.6,2523.1,0.18310875]
[1725294956683,3.9625,2523.7,2523.2,6.38521]
[1725294956998,3.9625,2523.7,2523.3,0.10377275]
[1725294957201,3.9625,2523.7,2523.2,6.38521]
[1725294957451,3.9625,2523.7,2523.3,0.10377275]
[1725294957900,7.92505,2523.7,2523.2,6.38521]
[1725294958104,3.9625,2523.7,2523.4,0.10373263]
[1725294958302,3.9625,2523.7,2523.3,0.10377275]
[1725294958503,7.92518,2523.6,2523.5,0.10369251]
[1725294958805,3.96355,2523.0,2522.6,2.4735]
[1725294959134,3.96355,2523.0,2522.7,0.10401356]
[1725294960341,7.92666,2523.2,2522.7,0.10401356]
[1725294960565,7.92666,2523.2,2522.7,0.75818792]
[1725294960566,3.96356,2523.0,2522.7,0.75818792]
[1725294960786,3.96356,2523.0,2522.7,0.10401356]
[1725294961279,3.96384,2522.8,2522.7,0.10401356]
[1725294961885,7.92768,2522.8,2522.7,0.10401356]
[1725294962050,3.96361,2523.0,2522.7,0.10401356]
[1725294962244,3.96331,2523.2,2522.6,5.65819732]
[1725294962473,3.96331,2523.2,2522.8,0.09915691]
[1725294962770,3.96331,2523.2,2522.8,0.07926425]
[1725294962935,3.96331,2523.2,2522.9,0.09911677]
[1725294963767,3.96338,2523.1,2522.9,0.09911677]
[1725294964078,6.96262,2523.6,2522.6,6.698078]
[1725294964079,3.96316,2523.3,2523.0,0.09907663]
[1725294964579,3.96316,2523.3,2522.8,0.07926322]
[1725294964799,3.96316,2523.3,2523.1,0.0990365]
[1725294964936,3.96316,2523.3,2522.8,3.15136534]
[1725294965132,3.96316,2523.3,2523.2,0.09899637]
[1725294965453,3.96324,2523.2,2522.8,3.15136534]
[1725294965860,3.96354,2523.0,2522.7,27.26]
[1725294966168,7.9266,2523.2,2522.7,27.26]
[1725294966344,7.92655,2523.2,2522.8,2.726]
[1725294966828,3.9634,2523.1,2522.8,2.726]
[1725294967033,3.96355,2523.0,2522.8,2.726]
[1725294967253,3.96355,2523.0,2522.7,27.26]
[1725294967683,7.92768,2522.8,2522.7,27.26]
[1725294967880,3.96463,2522.3,2522.2,7.28]
[1725294968050,3.96482,2522.2,2521.8,7.28]
[1725294968376,3.96474,2522.3,2521.9,2.96584]
[1725294968537,3.96474,2522.3,2522.0,0.296584]
[1725294968876,3.96488,2522.2,2522.0,0.296584]
[1725294969681,3.96494,2522.1,2522.0,0.296584]
[1725294970473,3.9651,2522.0,2521.9,2.96584]
[1725294970787,3.9651,2522.0,2521.5,23.48589]
[1725294970788,2.4397,2522.4,2521.6,19.98]
[1725294970990,3.96573,2521.6,2521.5,7.28]
[1725294971290,3.96636,2521.2,2520.8,2.322]
[1725294971580,3.96636,2521.2,2520.9,0.39669]
[1725294971978,3.96652,2521.1,2520.9,0.39669]
[1725294972180,3.96662,2521.1,2520.9,0.39669]
[1725294973191,3.96676,2521.0,2520.4,6.46646]
[1725294973411,3.96653,2521.1,2520.5,3.96744]
[1725294973636,3.96631,2521.3,2520.6,0.07933182]
[1725294973840,3.96631,2521.3,2520.8,3.96687]
[1725294974043,3.96631,2521.3,2520.9,0.47601308]
[1725294974613,3.96631,2521.3,2520.9,0.396687]
[1725294975218,3.96545,2521.8,2521.0,2.44332606]
[1725294975530,3.96411,2522.7,2521.0,2.44332606]
[1725294975531,7.92977,2522.2,2521.6,3.96571]
[1725294975743,3.9652,2522.0,2521.5,3.96573]
[1725294976094,3.9652,2522.0,2521.6,0.07930544]
[1725294976406,3.9652,2522.0,2521.3,3.9661]
[1725294976407,3.96511,2522.0,2521.3,7.9322]
[1725294976599,3.96511,2522.0,2521.4,0.39661]
[1725294976914,3.96511,2522.0,2521.5,7.93168]
[1725294977112,3.96489,2522.2,2521.6,4.04503154]
[1725294977529,3.96489,2522.2,2521.6,0.07930154]
[1725294977729,3.96503,2522.1,2521.5,7.93159]
[1725294977934,3.96503,2522.1,2521.6,0.396579]
[1725294978099,3.96503,2522.1,2521.6,4.4415898]
[1725294978299,3.96489,2522.2,2521.6,4.4415898]
[1725294978900,3.96489,2522.2,2521.6,0.4758798]
[1725294979102,3.96455,2522.4,2521.8,3.96539]
[1725294979375,3.96455,2522.4,2521.9,3.96523]
[1725294979575,7.92852,2522.6,2522.0,0.0792936]
[1725294979728,3.96423,2522.6,2522.0,0.40445236]
[1725294980066,3.96449,2522.4,2522.0,0.40445236]
[1725294980434,3.96475,2522.3,2521.7,15.65511698]
[1725294980650,3.96449,2522.4,2521.8,3.96533]
[1725294980957,3.96449,2522.4,2521.9,1.5654967]
[1725294982335,7.9291,2522.4,2521.9,1.5654967]
[1725294982542,3.96474,2522.3,2521.9,1.5654967]
[1725294982844,3.96449,2522.4,2521.9,1.5654967]
[1725294983060,3.96405,2522.7,2521.9,1.5654967]
[1725294983264,2.4069,2522.3,2521.7,7.28]
[1725294983468,3.96519,2522.0,2521.7,7.28]
[1725294983783,3.96505,2522.1,2521.7,10.006]
[1725294984083,3.96502,2522.1,2521.7,10.006]
[1725294984574,7.93006,2522.1,2521.7,10.006]
[1725294984735,7.93006,2522.1,2521.8,0.09148263]
[1725294984736,3.96515,2522.0,2521.8,0.09148263]
[1725294984951,7.93052,2521.9,2521.8,0.09148263]
[1725294985139,3.96542,2521.8,2521.7,7.28]
[1725294985880,7.93114,2521.7,2521.6,19.98]
[1725294987496,3.96557,2521.7,2521.6,19.98]
[1725294988362,2.311,2522.1,2521.6,19.98]
[1725294988766,3.96551,2521.8,2521.6,19.98]
[1725294989393,7.93114,2521.7,2521.6,19.98]
[1725294989770,3.96557,2521.7,2521.6,19.98]
[1725294990496,7.93114,2521.7,2521.6,19.98]
[1725294990704,0.927582,2522.0,2521.1,7.28]
[1725294990912,3.96633,2521.3,2521.1,7.28]
[1725294991200,3.96633,2521.3,2520.9,19.98]
[1725294991406,3.96604,2521.5,2520.9,23.94679]
[1725294991704,3.96606,2521.4,2521.0,4.01493556]
[1725294991861,7.93219,2521.4,2521.0,4.01493556]
[1725294992197,3.96661,2521.1,2520.7,7.28]
[1725294992902,3.9668,2521.0,2520.5,20.666456]
[1725294993201,3.9668,2521.0,2520.6,3.9309756]
[1725294993369,3.9668,2521.0,2520.5,4.653796]
[1725294993556,3.9668,2521.0,2520.6,3.96729]
[1725294993758,3.96646,2521.2,2520.6,3.96721]
[1725294993964,3.96653,2521.1,2520.6,7.93441]
[1725294994190,3.96653,2521.1,2520.7,0.8620866]
[1725294995160,6.96617,2521.4,2520.7,0.8620866]
[1725294995507,3.96629,2521.3,2520.8,3.96691]
[1725294995986,3.96669,2521.0,2520.5,4.653796]
[1725294996159,3.96687,2520.9,2520.5,4.653796]
[1725294996358,3.96669,2521.0,2520.5,4.653796]
[1725294997901,3.96669,2521.0,2520.5,8.621186]
[1725294998126,3.96669,2521.0,2520.6,1.5901186]
[1725294999298,3.96683,2520.9,2520.6,1.5901186]
[1725294999501,3.96669,2521.0,2520.6,1.5901186]
[1725294999805,3.96646,2521.2,2520.6,1.5901186]
[1725294999806,3.96652,2521.1,2520.7,0.09357765]
[1725295000000,3.96646,2521.2,2520.7,5.09113788]
[1725295000409,6.96612,2521.4,2520.9,3.96682]
[1725295000802,6.96612,2521.4,2521.0,0.09347162]
[1725295001434,3.96612,2521.4,2521.0,0.73386078]
[1725295001590,3.9659,2521.5,2521.0,0.73386078]
[1725295001790,3.96635,2521.3,2521.0,0.09347162]
[1725295001989,3.96635,2521.3,2520.7,4.99750023]
[1725295002194,3.96637,2521.2,2520.7,4.99750023]
[1725295002390,3.96637,2521.2,2520.8,0.09348645]
[1725295002600,3.96637,2521.2,2520.8,0.74345867]
[1725295002795,3.96659,2521.1,2520.9,0.09344625]
[1725295002989,3.96667,2521.0,2520.5,7.93471]
[1725295003191,3.96607,2521.4,2520.6,1.124735]
[1725295003192,3.96692,2520.9,2520.6,1.124735]
[1725295003425,3.96648,2521.2,2520.6,1.21830187]
[1725295003624,3.9666,2521.1,2520.6,1.21830187]
[1725295003832,3.96648,2521.2,2520.7,4.48570319]
[1725295004016,3.96648,2521.2,2520.7,3.96713]
[1725295004216,3.96628,2521.3,2520.8,4.06039645]
[1725295004547,3.96616,2521.4,2520.8,4.06039645]
[1725295004548,3.96637,2521.2,2520.8,0.09348645]
[1725295004844,3.96637,2521.2,2520.8,0.91524114]
[1725295005042,3.96637,2521.2,2520.9,0.09344625]
[1725295006240,3.96661,2521.1,2520.9,0.09344625]
[1725295006408,3.96661,2521.1,2520.6,5.092025]
[1725295006409,3.96661,2521.1,2520.6,3.96729]
[1725295006612,3.96661,2521.1,2520.7,0.99946416]
[1725295007013,3.96668,2521.0,2520.7,0.99946416]
[1725295007205,3.96661,2521.1,2520.7,0.09352666]
[1725295007629,3.96661,2521.1,2520.7,4.06066666]
[1725295008299,3.96601,2521.5,2520.8,2.57103514]
[1725295008496,3.96573,2521.6,2521.1,3.96643]
[1725295008959,3.96573,2521.6,2521.2,0.09346409]
[1725295009537,3.96568,2521.7,2521.2,0.09346409]
[1725295009742,3.96578,2521.6,2521.2,0.09346409]
[1725295009912,3.96568,2521.7,2521.2,0.09346409]
[1725295009913,3.9659,2521.5,2521.2,0.09346409]
[1725295010502,3.96568,2521.7,2521.2,0.09346409]
[1725295010503,3.96575,2521.6,2521.2,0.09346409]
[1725295010722,7.93135,2521.7,2521.2,4.05978409]
[1725295011001,7.93135,2521.7,2521.2,0.5073857]
[1725295011002,3.96581,2521.6,2521.2,0.5073857]
[1725295012028,9.22117,2521.9,2521.3,0.07932191]
[1725295012237,9.22117,2521.9,2521.4,0.09328173]
[1725295012414,3.96543,2521.8,2521.4,0.09328173]
[1725295013546,3.96543,2521.8,2521.4,5.09868509]
[1725295013734,3.9656,2521.7,2521.4,1.13264509]
[1725295013894,3.9656,2521.7,2521.4,0.09328173]
[1725295014428,3.9656,2521.7,2521.5,0.09302304]
[1725295014636,3.9656,2521.7,2521.2,6.25492]
[1725295015001,3.9656,2521.7,2521.3,0.09310341]
[1725295015312,3.9656,2521.7,2521.3,0.63480234]
[1725295015531,3.9656,2521.7,2521.4,0.09306322]
[1725295020351,3.96544,2521.8,2521.4,0.09306322]
[1725295020662,7.93178,2521.5,2521.4,0.09306322]
[1725295020809,10.31818,2521.5,2521.4,0.09306322]
[1725295021007,3.96619,2521.4,2521.1,27.26]
[1725295021333,3.96619,2521.4,2521.2,0.02]
[1725295022145,3.96623,2521.3,2521.2,0.02]
[1725295022448,12.930572,2521.3,2521.2,0.02]
[1725295022946,19.60435489,2521.3,2521.2,0.02]
[1725295023147,22.60435489,2521.3,2521.2,0.02]
[1725295024820,26.57058489,2521.3,2521.2,0.02]
[1725295025502,26.57058489,2521.3,2520.3,7.28]
[1725295025503,3.96762,2520.4,2520.3,7.28]
[1725295025704,6.56708289,2520.6,2519.9,7.28]
[1725295025915,3.96812,2520.1,2519.9,7.28]
[1725295026151,7.93578,2520.3,2519.9,7.28]
[1725295026362,3.96785,2520.3,2519.9,7.28]
[1725295026512,6.96749,2520.5,2520.0,2.2774]
[1725295026712,3.96749,2520.5,2520.0,6.24564]
[1725295027019,3.96744,2520.6,2520.1,1.36049975]
[1725295027222,3.96775,2520.4,2520.0,2.2774]
[1725295028404,3.96761,2520.5,2520.0,2.2774]
[1725295028958,3.96762,2520.4,2520.0,2.2774]
[1725295029309,3.96803,2520.2,2519.9,7.28]
[1725295029612,3.96803,2520.2,2519.7,2.2619]
[1725295029811,3.96803,2520.2,2520.0,0.0941363]
[1725295030035,3.96803,2520.2,2519.7,6.23059]
[1725295030234,3.96803,2520.2,2520.1,0.09503594]
[1725295030436,3.96803,2520.2,2519.6,11.24876]
[1725295030437,3.96818,2520.1,2519.6,11.24876]
[1725295030751,3.96803,2520.2,2519.6,14.371636]
[1725295030955,7.93605,2520.2,2519.6,14.371636]
[1725295031108,3.96802,2520.2,2519.6,14.371636]
[1725295031312,2.3023,2520.4,2519.6,14.371636]
[1725295031313,7.93662,2520.0,2519.6,10.402876]
[1725295031516,3.96826,2520.0,2519.6,7.28]
[1725295032348,3.96809,2520.1,2519.6,11.24885]
[1725295032655,3.96794,2520.2,2519.8,3.96847]
[1725295032822,6.27004,2520.4,2519.8,3.96847]
[1725295033444,3.96788,2520.3,2519.8,3.96847]
[1725295035456,3.96793,2520.2,2519.7,3.349075]
[1725295035620,7.93596,2520.2,2519.6,11.24876]
[1725295035824,3.96831,2520.0,2519.6,7.28]
[1725295036550,7.93602,2520.2,2519.6,11.24887]
[1725295036864,3.96817,2520.1,2519.6,14.994866]
[1725295037213,2.3342,2520.0,2519.5,19.98]
[1725295037417,3.96866,2519.8,2519.5,19.98]
[1725295038945,3.96842,2519.9,2519.5,19.98]
[1725295040257,7.93698,2519.9,2519.5,19.98]
[1725295040453,3.96842,2519.9,2519.4,7.28]
[1725295040627,3.96868,2519.8,2519.4,7.28]
[1725295040824,3.96873,2519.7,2519.4,7.28]
[1725295041258,3.96906,2519.5,2519.1,27.26]
[1725295041424,3.96906,2519.5,2519.1,3.96967]
[1725295041629,3.96906,2519.5,2519.1,6.991483]
[1725295042028,3.96932,2519.4,2519.0,19.98]
[1725295042239,3.96905,2519.5,2519.0,23.9498]
[1725295042412,3.96905,2519.5,2519.0,27.96473556]
[1725295043564,3.96905,2519.5,2519.0,23.99493556]
[1725295043747,3.96905,2519.5,2519.0,27.96468556]
[1725295044560,3.96905,2519.5,2519.0,7.98468556]
[1725295044737,3.96905,2519.5,2519.1,0.09648113]
[1725295047145,3.96897,2519.6,2519.1,0.09648113]
[1725295047346,3.96861,2519.8,2519.3,3.96926]
[1725295047539,7.93731,2519.8,2519.3,3.96926]
[1725295047739,3.96861,2519.8,2519.4,0.09634578]
[1725295048183,7.93726,2519.8,2519.4,0.09634578]
[1725295048880,3.96902,2519.6,2519.4,0.09634578]
[1725295049259,6.29766,2519.7,2519.1,3.96959]
[1725295049260,3.96904,2519.5,2519.1,3.96959]
[1725295049573,3.96888,2519.6,2519.1,3.96958]
[1725295049762,3.96888,2519.6,2519.1,8.73759256]
[1725295049969,6.29754,2519.7,2519.1,4.76801256]
[1725295050291,3.96874,2519.7,2519.3,3.96934]
[1725295050806,2.4772,2519.9,2519.3,2.4908]